bitfinex/quotes_ETHUSD_20250123
["timestamp","ask_amount","ask_price","bid_price","bid_amount"]
[1737611193334,0.63093561,3215.4,3215.1,3.11032]
[1737611194038,0.63093561,3215.4,3215.0,3.11036]
[1737611194445,1.38209086,3215.4,3215.0,3.11036]
[1737611195301,0.63093561,3215.4,3215.0,3.11036]
[1737611196459,3.11049,3215.0,3214.3,0.8038]
[1737611196744,2.96485693,3214.9,3214.4,3.40993]
[1737611197052,6.07538693,3214.9,3214.4,3.40993]
[1737611197340,0.60753869,3214.8,3214.4,3.40993]
[1737611197544,2.96485693,3214.6,3214.3,0.299]
[1737611199461,0.7801,3214.5,3212.9,0.9432415]
[1737611199674,0.7801,3214.5,3212.1,2.96485693]
[1737611199675,3.11217,3213.2,3212.4,3.11291]
[1737611199965,2.96485693,3212.8,3212.2,0.8038]
[1737611200169,2.96485693,3213.1,3212.2,3.9169]
[1737611200333,6.07712693,3213.1,3212.2,0.8038]
[1737611200676,6.07712693,3213.1,3212.2,3.91692]
[1737611201564,3.11242,3213.0,3212.2,3.91692]
[1737611202143,0.63054266,3212.8,3212.2,3.91692]
[1737611202464,0.63054266,3212.8,3212.2,0.8038]
[1737611202465,3.74309266,3212.8,3212.2,0.8038]
[1737611203568,3.59539959,3212.8,3212.3,35.0]
[1737611203727,2.96485693,3212.8,3212.3,35.0]
[1737611203929,3.11217,3213.2,3212.5,3.11277]
[1737611204631,3.11217,3213.2,3212.6,35.0]
[1737611204833,3.73475236,3213.2,3212.6,35.0]
[1737611205535,3.73475236,3213.2,3212.6,38.11273]
[1737611206627,3.73475236,3213.2,3212.6,35.0]
[1737611207671,3.11227,3213.1,3212.6,35.0]
[1737611207878,3.11237,3213.0,3212.6,35.0]
[1737611208394,3.11255,3212.8,3212.4,0.3]
[1737611208758,3.11245,3212.9,3212.4,0.3]
[1737611208959,3.11237,3213.0,3212.4,0.3]
[1737611209160,3.48586524,3213.0,3212.4,0.3]
[1737611209493,3.11247,3212.9,3212.4,0.3]
[1737611209671,3.11255,3212.8,3212.4,0.3]
[1737611210384,3.11276,3212.6,3211.8,0.8088]
[1737611210554,3.11293,3212.4,3211.8,4.22231]
[1737611211002,3.11293,3212.4,3211.9,3.0]
[1737611211765,3.11276,3212.6,3211.9,3.11342]
[1737611212704,3.72727201,3212.6,3211.9,3.11342]
[1737611212998,3.11284,3212.5,3211.9,3.11339]
[1737611215115,3.11305,3212.3,3211.8,0.8088]
[1737611215393,3.93939,3212.2,3211.5,3.9226]
[1737611215773,3.93939,3212.2,3211.6,3.0]
[1737611216900,3.11326,3212.1,3211.6,3.0]
[1737611217107,0.393946,3212.0,3211.5,3.9226]
[1737611217695,0.393946,3212.0,3211.5,3.1138]
[1737611219507,0.393946,3212.0,3211.6,3.11368]
[1737611219667,3.93933,3212.2,3211.6,3.11368]
[1737611221861,0.60863124,3212.1,3211.6,3.11368]
[1737611223631,3.93933,3212.2,3211.6,3.11368]
[1737611224734,4.54696542,3212.2,3211.6,3.11368]
[1737611226236,4.54696542,3212.2,3211.7,3.11361]
[1737611227394,0.7797,3212.4,3211.9,3.11341]
[1737611228232,0.7797,3212.4,3211.9,3.88831]
[1737611228450,0.7797,3212.4,3212.1,3.11322]
[1737611228647,0.7797,3212.9,3212.3,3.11302]
[1737611228796,1.20625752,3212.9,3212.4,3.11286]
[1737611228995,0.7797,3212.9,3212.4,3.11286]
[1737611229434,0.7797,3212.9,3212.3,3.11302]
[1737611229639,0.7797,3212.9,3212.5,3.11283]
[1737611229933,0.7797,3213.4,3212.5,3.88773]
[1737611230137,0.61461276,3213.0,3212.7,3.11256]
[1737611230491,3.11209,3213.3,3212.7,3.11256]
[1737611230714,0.389179,3213.2,3212.7,3.11256]
[1737611231254,0.7797,3213.4,3212.7,3.11256]
[1737611231401,0.7797,3213.4,3212.8,3.11248]
[1737611231820,3.89168,3213.4,3212.8,3.11248]
[1737611232019,0.60994435,3213.1,3212.8,3.11248]
[1737611232510,0.7797,3213.4,3212.9,3.11238]
[1737611232838,3.501245,3213.3,3212.7,3.11256]
[1737611233246,0.62573884,3213.2,3212.7,3.11256]
[1737611236365,3.89212,3213.0,3212.3,4.18689]
[1737611237170,3.89212,3213.0,3212.4,3.11289]
[1737611237831,3.89212,3213.0,3212.3,4.18689]
[1737611239058,3.11263,3212.8,3212.1,3.41221]
[1737611239421,3.11269,3212.7,3212.2,3.0]
[1737611239623,0.7797,3212.6,3212.2,3.0]
[1737611239921,0.7501,3212.1,3211.6,3.11369]
[1737611240134,4.249683,3212.1,3211.4,3.88954]
[1737611240462,3.11335,3212.0,3211.5,3.0]
[1737611242159,3.11335,3212.0,3211.4,3.11384]
[1737611243058,3.11377,3211.6,3210.9,0.7757]
[1737611243261,0.386387,3211.5,3211.0,3.11427]
[1737611243590,0.7501,3211.7,3211.2,3.11403]
[1737611244257,0.7501,3212.2,3211.6,3.11362]
[1737611244590,0.7501,3212.2,3211.7,3.11361]
[1737611245158,0.7501,3212.2,3211.5,3.66376]
[1737611245480,4.249574,3212.2,3211.5,3.66376]
[1737611245865,1.136414,3212.2,3211.7,3.1136]
[1737611246378,1.77411644,3212.2,3211.7,3.1136]
[1737611247046,0.7501,3212.6,3212.2,3.11312]
[1737611247247,0.7501,3213.0,3212.0,0.58113116]
[1737611247548,0.7501,3213.0,3212.4,3.11286]
[1737611248049,0.61142982,3212.9,3212.4,3.11286]
[1737611248249,1.0588088,3212.9,3212.4,3.11286]
[1737611249465,0.61142982,3212.9,3212.4,3.11286]
[1737611250478,0.7501,3213.0,3212.5,3.11282]
[1737611251079,0.7501,3213.3,3212.9,3.11245]
[1737611251278,0.7501,3213.3,3212.6,3.11274]
[1737611251279,0.7501,3213.3,3213.1,3.11216]
[1737611251453,0.63490086,3213.5,3213.2,3.11216]
[1737611251872,0.63490086,3213.5,3213.0,3.11228]
[1737611252064,1.08456895,3213.5,3213.1,3.11225]
[1737611252269,1.08456895,3213.5,3213.0,3.11228]
[1737611252465,0.63490086,3213.5,3212.8,3.41151]
[1737611252674,0.63490086,3213.5,3213.2,3.11215]
[1737611252897,0.63490086,3213.5,3213.1,3.11217]
[1737611253192,0.63490086,3213.5,3213.2,3.11215]
[1737611253700,0.63490086,3213.5,3213.0,3.11233]
[1737611254199,0.63490086,3213.5,3213.1,3.11224]
[1737611256998,0.63490086,3213.5,3212.4,3.0]
[1737611257201,3.11203,3213.4,3212.7,6.11262]
[1737611257715,3.11203,3213.4,3212.8,3.11253]
[1737611258207,3.1121,3213.3,3212.7,3.0]
[1737611258550,0.8285,3213.2,3212.7,3.11264]
[1737611258901,0.8285,3213.2,3212.8,3.11248]
[1737611259805,0.8285,3213.2,3212.7,3.11264]
[1737611260005,0.8285,3213.2,3212.9,3.11243]
[1737611261420,0.8285,3213.2,3213.0,3.11233]
[1737611261830,0.8285,3213.2,3213.1,3.11225]
[1737611268679,0.8285,3213.4,3213.1,3.11225]
[1737611268982,0.8285,3213.4,3213.2,3.11215]
[1737611269135,0.8285,3213.4,3213.1,3.11225]
[1737611269962,0.8285,3213.4,3213.2,3.11214]
[1737611270974,0.8285,3213.4,3213.1,3.11225]
[1737611271734,0.8285,3213.4,3213.3,3.11206]
[1737611272279,0.8285,3213.4,3213.1,3.11225]
[1737611273602,0.8285,3213.4,3213.2,3.11214]
[1737611276438,0.63490086,3213.5,3213.4,3.11196]
[1737611277539,0.63490086,3213.5,3213.4,3.66196]
[1737611278940,0.7623,3214.0,3213.6,3.11174]
[1737611280094,0.7623,3214.0,3213.4,3.66196]
[1737611280259,0.7623,3214.0,3213.1,35.8319]
[1737611280260,3.11152,3213.9,3213.3,3.11203]
[1737611280761,0.7623,3213.6,3213.1,3.11223]
[1737611282507,0.7623,3213.6,3213.0,0.299]
[1737611282694,0.7623,3213.6,3213.2,3.11213]
[1737611286268,0.7623,3213.6,3213.2,6.22421]
[1737611286879,0.7623,3213.6,3213.2,3.11208]
[1737611287080,0.7623,3213.6,3212.9,0.55]
[1737611287321,0.7881,3214.4,3213.8,3.11151]
[1737611287528,0.389904,3214.3,3214.0,3.1113]
[1737611287743,0.7881,3214.4,3214.1,3.11128]
[1737611287890,0.7881,3214.4,3214.0,3.1113]
[1737611288080,0.7881,3214.4,3214.1,3.11128]
[1737611289188,0.63447529,3214.3,3214.2,3.11119]
[1737611290831,0.7881,3214.7,3214.2,3.11119]
[1737611291152,1.177962,3214.7,3214.2,3.11119]
[1737611291534,0.60914273,3214.6,3214.2,3.11119]
[1737611291829,1.177962,3214.7,3214.5,3.11084]
[1737611291830,0.7881,3214.7,3214.5,3.11084]
[1737611292031,0.7881,3215.1,3214.6,3.1108]
[1737611292231,1.099129,3215.1,3214.7,3.11068]
[1737611292438,0.7881,3215.1,3214.7,3.11068]
[1737611292623,0.7881,3215.1,3214.6,3.11079]
[1737611292821,0.7881,3215.1,3214.4,3.11092]
[1737611293023,0.7881,3215.1,3214.5,3.11083]
[1737611293202,0.7881,3215.1,3214.6,3.1108]
[1737611293404,1.177933,3215.1,3214.6,3.1108]
[1737611293595,0.7881,3215.1,3214.6,3.9107]
[1737611293808,0.7881,3215.1,3214.6,3.1108]
[1737611294825,2.96485693,3215.4,3214.2,3.298]
[1737611295012,3.11075,3214.7,3214.2,0.298]
[1737611295205,0.7881,3214.5,3214.2,0.298]
[1737611295402,3.89902,3214.5,3213.7,0.298]
[1737611295634,0.7881,3214.5,3214.0,3.11135]
[1737611295949,0.7881,3214.5,3213.8,3.1115]
[1737611296242,0.7881,3214.5,3213.9,3.11145]
[1737611296742,0.7881,3214.5,3213.8,3.1115]
[1737611296743,0.7881,3214.5,3214.1,3.11122]
[1737611296946,1.39842468,3214.7,3214.2,3.11119]
[1737611297130,1.84932115,3214.7,3214.2,3.11119]
[1737611297714,1.39842468,3214.7,3214.2,3.11119]
[1737611297916,0.7881,3214.7,3214.2,3.11119]
[1737611298241,0.7881,3214.7,3214.4,3.11099]
[1737611298714,0.6277073,3214.8,3214.4,3.11099]
[1737611299559,0.7881,3214.7,3214.0,3.94236028]
[1737611299764,0.7881,3214.7,3214.1,6.11122]
[1737611300247,4.66254573,3214.7,3214.0,0.298]
[1737611300452,3.11091,3214.5,3214.0,0.298]
[1737611302461,4.66254573,3214.7,3214.0,0.298]
[1737611302667,7.77331573,3214.7,3214.0,0.298]
[1737611303730,3.11097,3214.5,3214.0,0.298]
[1737611303930,3.89226157,3214.5,3214.0,0.298]
[1737611304131,3.89226157,3214.5,3213.9,3.11147]
[1737611304356,0.8275,3214.0,3213.4,3.11191]
[1737611304564,0.8275,3214.0,3213.4,3.40991]
[1737611304869,0.8275,3214.0,3213.5,3.0]
[1737611305073,0.8275,3214.0,3213.6,3.11176]
[1737611307873,0.8275,3214.0,3213.6,6.22347]
[1737611309042,0.8275,3214.0,3213.7,3.11166]
[1737611310772,0.8275,3214.0,3213.7,3.11159]
[1737611311139,0.8275,3214.0,3213.8,3.11156]
[1737611312581,0.8275,3214.0,3213.7,3.11159]
[1737611312746,0.8275,3214.0,3213.8,3.11157]
[1737611315161,0.8275,3214.0,3213.9,3.11148]
[1737611315356,0.799,3214.4,3213.9,3.11148]
[1737611315560,1.26811116,3214.4,3213.9,3.11148]
[1737611316384,0.63138184,3214.2,3213.9,3.11148]
[1737611317548,0.63138184,3214.2,3213.8,3.11157]
[1737611322151,0.63138184,3214.2,3213.9,3.11148]
[1737611322310,4.20838693,3215.4,3213.9,3.11148]
[1737611322311,0.799,3216.1,3214.6,0.8021]
[1737611322642,0.799,3215.9,3215.2,3.11021]
[1737611322838,3.90862,3215.9,3215.2,3.11021]
[1737611323627,0.60944205,3215.6,3215.2,3.11021]
[1737611324104,3.90862,3215.9,3215.2,3.11021]
[1737611324403,3.10965,3215.8,3215.2,3.11021]
[1737611324605,3.53815357,3215.8,3215.2,3.11021]
[1737611324801,0.63318845,3215.8,3215.3,3.11003]
[1737611325014,0.63318845,3215.8,3215.5,3.10986]
[1737611326135,0.63318845,3215.8,3215.7,3.10974]
[1737611326910,0.63318845,3215.8,3215.5,3.10986]
[1737611327354,0.63318845,3215.8,3215.6,3.10981]
[1737611328166,0.63318845,3215.8,3215.7,0.8021]
[1737611328350,3.9081,3216.4,3215.7,0.8021]
[1737611328555,4.609809,3216.4,3215.7,0.8021]
[1737611329265,3.10938,3216.1,3215.5,0.03109556]
[1737611329417,3.90864,3215.8,3215.2,3.297]
[1737611329934,3.10987,3215.6,3215.2,3.0]
[1737611330269,3.90864,3215.8,3215.1,0.8021]
[1737611330418,3.90864,3215.8,3215.1,3.8021]
[1737611330835,3.10978,3215.7,3215.1,3.8021]
[1737611331231,3.10994,3215.5,3215.1,0.8021]
[1737611331537,3.10981,3215.7,3215.1,0.8021]
[1737611332063,0.799,3215.8,3215.3,3.0]
[1737611332752,3.90865,3215.8,3215.3,3.0]
[1737611333622,3.90865,3215.8,3215.2,0.55]
[1737611336066,3.90865,3215.8,3215.3,3.0]
[1737611337257,0.799,3215.8,3215.3,6.1101]
[1737611337453,3.10952,3216.0,3215.3,3.1101]
[1737611338152,0.799,3216.1,3215.4,3.11001]
[1737611338321,3.73072625,3216.2,3215.5,0.8021]
[1737611338528,3.62143625,3216.2,3215.6,3.10978]
[1737611339969,0.62143625,3216.2,3215.6,3.10978]
[1737611340184,3.73071625,3216.2,3215.6,3.10978]
[1737611340492,0.62143625,3216.2,3215.6,3.10978]
[1737611342386,3.73072625,3216.2,3215.6,3.10978]
[1737611343186,3.10935,3216.1,3215.5,0.8021]
[1737611346090,0.8049,3215.9,3215.2,1.3772]
[1737611346294,0.8049,3215.9,3215.2,1.6742]
[1737611346295,3.10985,3215.6,3215.2,1.6742]
[1737611346503,3.10977,3215.7,3215.2,1.6742]
[1737611348299,3.10996,3215.5,3215.2,1.1242]
[1737611348497,3.10996,3215.5,3214.9,3.11049]
[1737611348667,3.11005,3215.4,3214.7,0.8272]
[1737611348992,3.11027,3215.2,3214.8,0.296]
[1737611349198,0.8049,3215.6,3215.0,3.11039]
[1737611349377,0.8049,3216.0,3215.1,0.8272]
[1737611349549,3.10972,3215.8,3215.1,0.8272]
[1737611350896,3.10972,3215.8,3215.2,3.11021]
[1737611351199,0.6328681,3215.9,3215.3,0.55]
[1737611351419,3.10923,3216.3,3215.6,3.10974]
[1737611351561,3.10923,3216.3,3215.7,3.1097]
[1737611352187,3.10923,3216.3,3215.5,3.65993]
[1737611352352,3.10923,3216.3,3215.6,3.10982]
[1737611353285,0.62836568,3216.4,3215.8,0.55]
[1737611353286,3.73743568,3216.4,3215.8,0.55]
[1737611353456,3.73743568,3216.4,3215.8,3.65963]
[1737611355290,3.10923,3216.3,3215.8,0.55]
[1737611355495,3.10923,3216.3,3215.4,0.8272]
[1737611355790,3.10942,3216.1,3215.5,0.55]
[1737611356798,3.10942,3216.1,3215.6,0.28825479]
[1737611357464,3.10923,3216.3,3215.6,0.28825479]
[1737611358414,0.62836568,3216.4,3215.8,3.10962]
[1737611358562,0.62836568,3216.4,3215.9,0.8582907]
[1737611359456,0.62836568,3216.4,3216.0,0.55]
[1737611360705,0.62836568,3216.4,3216.0,0.58109117]
[1737611363922,0.62836568,3216.4,3216.0,0.55]
[1737611364122,3.73742568,3216.4,3216.0,0.55]
[1737611366264,3.73742568,3216.4,3215.9,0.8272]
[1737611366505,3.10928,3216.2,3215.9,0.8272]
[1737611368398,3.73742568,3216.4,3215.9,0.8272]
[1737611368566,6.84658568,3216.4,3215.9,0.8272]
[1737611368763,3.10918,3216.3,3215.9,0.8272]
[1737611371375,3.10918,3216.3,3216.0,0.296]
[1737611374607,3.10897,3216.5,3216.0,0.296]
[1737611375319,3.10897,3216.5,3216.0,0.3270927]
[1737611375490,3.10881,3216.7,3216.0,0.3270927]
[1737611375811,3.10887,3216.6,3216.0,0.3270927]
[1737611376401,3.10881,3216.7,3216.0,0.296]
[1737611376607,0.752,3216.5,3216.0,0.32709115]
[1737611376773,3.10908,3216.4,3216.0,0.296]
[1737611379325,3.10905,3216.5,3216.0,0.296]
[1737611380026,3.10905,3216.5,3216.1,0.28751965]
[1737611382033,3.10905,3216.5,3216.2,0.28751965]
[1737611383331,3.10879,3216.7,3216.0,0.32709123]
[1737611383528,3.10889,3216.6,3216.0,0.32709123]
[1737611384535,4.47986308,3216.8,3216.0,0.32709123]
[1737611384933,3.10893,3216.6,3216.0,0.32709123]
[1737611385295,3.10893,3216.6,3216.1,0.28765154]
[1737611386439,3.10898,3216.5,3216.1,0.28765154]
[1737611386799,3.10893,3216.6,3216.1,0.28765154]
[1737611387142,3.10893,3216.6,3216.0,0.296]
[1737611387143,3.10893,3216.6,3216.2,0.28765154]
[1737611387844,4.47982308,3216.8,3216.2,0.28765154]
[1737611388004,3.72782308,3216.8,3216.3,0.752]
[1737611388840,3.72782308,3216.8,3216.4,0.28765154]
[1737611389836,3.10868,3216.8,3216.4,0.28765154]
[1737611390647,3.10868,3216.8,3216.3,0.752]
[1737611399327,0.62229238,3217.0,3216.1,1.112]
[1737611399546,3.10895,3216.6,3216.1,1.112]
[1737611400445,3.10878,3216.7,3216.1,1.112]
[1737611401764,3.10888,3216.6,3216.1,1.112]
[1737611402841,3.10902,3216.5,3216.1,1.112]
[1737611403567,3.10902,3216.5,3216.2,0.28767719]
[1737611405174,3.10878,3216.7,3216.1,1.112]
[1737611406874,3.10893,3216.6,3216.1,1.112]
[1737611407237,3.10878,3216.7,3216.1,1.112]
[1737611408151,3.10878,3216.7,3216.2,0.28779827]
[1737611409868,3.10896,3216.6,3216.2,0.28779827]
[1737611410179,3.10896,3216.6,3216.3,0.28779827]
[1737611410582,3.10897,3216.5,3216.3,0.28779827]
[1737611410875,3.10896,3216.6,3216.3,0.28779827]
[1737611412173,3.10896,3216.6,3216.1,0.817]
[1737611412485,3.93522604,3216.6,3215.7,0.7787]
[1737611412649,3.10913,3216.4,3215.8,0.294]
[1737611413177,3.93517604,3216.6,3215.8,0.294]
[1737611413741,0.7536,3216.7,3215.8,3.40361]
[1737611413941,0.60878401,3216.8,3216.2,0.7787]
[1737611414779,3.71746401,3216.8,3216.2,0.7787]
[1737611415879,3.10877,3216.7,3216.2,0.7787]
[1737611416774,3.10877,3216.7,3215.9,38.10954]
[1737611417087,3.10877,3216.7,3216.0,0.7787]
[1737611417577,0.7536,3216.5,3216.0,0.7787]
[1737611418257,3.10931,3216.2,3215.7,0.7787]
[1737611418564,3.10931,3216.2,3215.6,0.294]
[1737611418770,3.10956,3215.9,3215.5,1.0727]
[1737611419035,3.10929,3216.2,3215.5,0.294]
[1737611419273,3.10954,3216.0,3215.5,0.294]
[1737611419475,3.10955,3215.9,3215.5,0.294]
[1737611419787,3.10955,3215.9,3215.3,1.0727]
[1737611420281,3.10955,3215.9,3215.3,0.7787]
[1737611420481,0.829,3215.7,3215.4,0.28784436]
[1737611420875,3.10956,3215.9,3215.4,0.28784436]
[1737611421649,0.63253685,3215.8,3215.4,0.28784436]
[1737611421991,0.63253685,3215.8,3215.2,0.294]
[1737611422288,3.1098,3215.7,3215.2,0.294]
[1737611422587,3.10991,3215.6,3215.2,0.294]
[1737611423296,3.10945,3216.0,3215.3,0.798]
[1737611423871,0.829,3216.1,3215.3,0.82909784]
[1737611424191,3.9381,3216.4,3215.5,3.90786]
[1737611424363,3.9381,3216.4,3215.5,0.798]
[1737611424565,3.10926,3216.2,3215.6,35.0]
[1737611424888,3.72619477,3216.2,3215.6,35.0]
[1737611425899,3.72619477,3216.2,3215.5,0.798]
[1737611426412,3.72619477,3216.2,3215.5,35.798]
[1737611426898,3.72619477,3216.2,3215.5,0.798]
[1737611427471,3.72619477,3216.2,3215.5,35.798]
[1737611427796,3.10926,3216.2,3215.5,38.90792]
[1737611427999,3.10926,3216.2,3215.5,3.90792]
[1737611428499,3.10926,3216.2,3215.5,0.798]
[1737611428500,3.10936,3216.1,3215.5,0.798]
[1737611429698,0.829,3215.8,3215.2,1.092]
[1737611429907,3.93867,3215.8,3215.2,1.092]
[1737611430492,3.10991,3215.6,3215.2,0.798]
[1737611430800,0.829,3215.8,3215.2,0.798]
[1737611430801,3.10995,3215.5,3215.2,0.798]
[1737611431003,3.10995,3215.5,3215.0,1.092]
[1737611431301,0.829,3215.8,3215.0,1.092]
[1737611431605,3.93864,3215.8,3215.0,1.092]
[1737611431908,3.10976,3215.7,3215.0,1.092]
[1737611432303,0.829,3215.8,3215.0,1.092]
[1737611432604,3.10997,3215.5,3215.0,1.092]
[1737611433101,3.10996,3215.5,3215.0,1.092]
[1737611433306,3.10996,3215.5,3215.0,0.798]
[1737611433484,3.11005,3215.4,3215.0,0.798]
[1737611434047,3.10991,3215.6,3215.0,0.798]
[1737611434166,3.93854,3216.0,3215.0,0.798]
[1737611434367,3.10954,3216.0,3215.3,0.798]
[1737611434693,3.10955,3215.9,3215.3,0.829098]
[1737611434897,3.10955,3215.9,3215.3,0.798]
[1737611435288,0.8012,3215.8,3215.3,0.798]
[1737611435485,3.10975,3215.7,3215.3,0.798]
[1737611435791,0.8012,3215.8,3215.3,0.798]
[1737611436107,3.10959,3215.9,3215.3,0.798]
[1737611436602,3.10916,3216.4,3215.6,0.7808]
[1737611436809,3.10908,3216.4,3215.6,3.89063]
[1737611437171,3.10908,3216.4,3215.6,3.9217249]
[1737611437723,3.9101,3216.6,3215.7,3.10967]
[1737611437927,3.9101,3216.6,3215.7,3.14076269]
[1737611438105,3.73015404,3216.5,3215.8,0.03109294]
[1737611438421,3.73015404,3216.5,3215.9,0.7808]
[1737611438422,3.10906,3216.4,3215.9,0.7808]
[1737611438631,0.3730244,3216.3,3215.3,0.7808]
[1737611438828,3.10939,3216.1,3215.3,0.7808]
[1737611439122,0.8012,3216.2,3215.3,0.7808]
[1737611439825,3.10961,3215.9,3215.3,0.7808]
[1737611440325,0.8012,3216.2,3215.3,0.7808]
[1737611440529,3.10991,3215.6,3215.3,0.7808]
[1737611441795,3.73604331,3215.8,3215.3,0.7808]
[1737611442038,3.10976,3215.7,3215.3,0.7808]
[1737611442203,4.59554033,3215.7,3215.0,1.0738]
[1737611442896,3.10989,3215.6,3215.0,1.0738]
[1737611443330,3.73604331,3215.8,3215.0,4.1842]
[1737611443900,3.73604331,3215.8,3215.1,0.7808]
[1737611444103,3.73604331,3215.8,3215.2,0.7808]
[1737611444321,3.10974,3215.7,3215.2,0.7808]
[1737611446617,3.10933,3216.2,3215.3,0.7808]
[1737611446918,3.10914,3216.4,3215.7,0.7808]
[1737611447140,0.61287934,3216.3,3215.7,0.81189427]
[1737611447341,3.10914,3216.4,3215.7,0.81189427]
[1737611447535,3.10917,3216.3,3215.7,0.7808]
[1737611448114,3.10926,3216.2,3215.7,0.7808]
[1737611448350,0.61928358,3216.3,3215.7,0.7808]
[1737611448545,3.10935,3216.1,3215.7,0.7808]
[1737611449849,3.1098,3215.7,3215.2,0.7808]
[1737611452451,3.811855,3215.7,3215.2,0.7808]
[1737611453150,3.811805,3215.7,3215.2,0.7808]
[1737611454151,4.41828011,3215.7,3215.2,0.7808]
[1737611455461,1.30853011,3215.7,3215.2,0.7808]
[1737611455755,0.60647511,3215.7,3215.2,0.7808]
[1737611458241,0.60647511,3215.7,3215.2,3.89102]
[1737611458449,0.60647511,3215.7,3215.3,3.11012]
[1737611460225,0.60647511,3215.7,3215.2,0.7808]
[1737611460736,3.71621511,3215.7,3215.2,0.7808]
[1737611460964,3.11001,3215.5,3214.7,0.8209]
[1737611461257,3.11012,3215.3,3214.8,0.293]
[1737611462050,3.11028,3215.2,3214.8,0.293]
[1737611462253,3.11028,3215.2,3214.7,1.1139]
[1737611462735,3.11052,3214.9,3214.7,0.8209]
[1737611462936,3.421572,3214.9,3214.7,0.8209]
[1737611463336,3.421572,3214.9,3214.5,1.1139]
[1737611464364,3.11068,3214.8,3214.5,0.293]
[1737611464976,3.11068,3214.8,3214.4,0.293]
[1737611466041,3.11071,3214.7,3214.4,0.293]
[1737611467077,3.11071,3214.7,3214.3,1.1139]
[1737611468486,4.05651065,3214.9,3214.3,4.22495]
[1737611469591,4.05651065,3214.9,3214.3,1.1139]
[1737611470196,0.48233107,3214.8,3214.3,1.1139]
[1737611470489,3.59295107,3214.8,3214.3,1.1129]
[1737611472788,0.94597065,3214.9,3214.3,1.1129]
[1737611473158,0.94597065,3214.9,3214.3,4.22393]
[1737611473393,0.63491865,3214.9,3214.3,4.22393]
[1737611476005,0.63491865,3214.9,3214.4,0.12340099]
[1737611477419,0.63491865,3214.9,3214.3,4.22393]
[1737611481419,0.63491865,3214.9,3214.4,0.12343938]
[1737611482772,0.63491865,3214.9,3214.5,35.0]
[1737611482974,0.63491865,3214.9,3214.4,0.12343938]
[1737611484889,0.63491865,3214.9,3214.3,4.22393]
[1737611485709,0.63491865,3214.9,3214.4,0.23057213]
[1737611486084,0.8267,3215.3,3214.5,2.96485693]
[1737611486404,0.8267,3215.3,3214.7,0.7809]
[1737611486645,1.22037,3215.3,3214.7,0.7809]
[1737611487275,0.60662787,3215.1,3214.7,0.7809]
[1737611489423,0.60662787,3215.1,3214.4,0.7809]
[1737611489627,3.11042,3215.0,3214.4,0.7809]
[1737611490590,3.11042,3215.0,3214.3,0.292]
[1737611490591,3.11072,3214.7,3214.3,0.292]
[1737611490904,0.704803,3214.6,3214.2,0.7809]
[1737611491108,3.93731,3214.8,3214.2,0.7809]
[1737611492544,3.93731,3214.8,3214.3,0.23105095]
[1737611492836,3.93731,3214.8,3214.3,0.35481215]
[1737611493037,0.8267,3214.8,3214.3,0.35481215]
[1737611494340,0.8267,3214.8,3214.3,0.1237612]
[1737611494507,3.93714,3215.0,3214.4,0.1237612]
[1737611494695,0.45437679,3214.9,3214.4,0.1237612]
[1737611495596,0.45437679,3214.9,3214.2,0.7809]
[1737611496542,0.45437679,3214.9,3214.3,0.23100464]
[1737611497038,0.45437679,3214.9,3214.3,0.35473434]
[1737611498026,0.45437679,3214.9,3214.4,0.1237297]
[1737611498238,0.43915168,3214.8,3214.4,0.1237297]
[1737611499047,0.62219346,3214.6,3214.4,0.1237297]
[1737611499246,0.62219346,3214.6,3214.2,0.7809]
[1737611500112,0.62219346,3214.6,3214.2,3.89208]
[1737611500833,0.62219346,3214.6,3214.3,0.12371938]
[1737611502248,0.62219346,3214.6,3214.4,0.12371938]
[1737611503732,0.62219346,3214.6,3214.2,0.7809]
[1737611504317,0.62219346,3214.6,3214.2,3.89203]
[1737611505017,0.62219346,3214.6,3214.2,0.7809]
[1737611505227,0.8156,3214.5,3214.3,0.12370882]
[1737611505527,3.92658,3214.5,3214.3,0.12370882]
[1737611505717,0.45487735,3214.4,3214.3,0.12370882]
[1737611506320,0.45487735,3214.4,3213.7,4.17085]
[1737611506515,0.8156,3214.5,3213.7,4.17085]
[1737611506721,0.8156,3214.5,3213.8,3.11157]
[1737611507818,0.8156,3214.5,3213.9,0.12370111]
[1737611508226,0.8156,3214.5,3213.9,3.23516111]
[1737611509623,0.62219346,3214.6,3214.1,3.87948]
[1737611509810,0.62219346,3214.6,3214.2,3.11111]
[1737611511228,0.62219346,3214.6,3214.3,0.12370111]
[1737611512439,0.62219346,3214.6,3214.4,0.12370111]
[1737611513546,0.62219346,3214.6,3214.2,3.11111]
[1737611514622,0.62219346,3214.6,3214.3,0.12364399]
[1737611515552,0.62219346,3214.6,3214.1,4.17046]
[1737611515713,3.9262,3214.9,3214.1,4.17046]
[1737611515913,0.39262,3214.8,3214.1,4.17046]
[1737611517152,0.39262,3214.8,3214.2,0.12366945]
[1737611517810,0.63494827,3214.7,3214.2,0.12366945]
[1737611518039,3.11022,3215.2,3214.3,3.111]
[1737611518243,3.11022,3215.2,3214.4,0.7682]
[1737611518440,0.392582,3215.1,3214.4,0.7682]
[1737611519043,0.6342918,3214.9,3214.4,3.87911]
[1737611519850,0.6342918,3214.9,3214.5,0.12366945]
[1737611521245,0.6342918,3214.9,3214.6,0.12366945]
[1737611522350,0.6342918,3214.9,3214.4,0.7682]
[1737611522725,1.04801318,3214.9,3214.4,0.7682]
[1737611522928,3.92623,3214.8,3214.2,1.0592]
[1737611523730,3.92623,3214.8,3214.3,0.12364535]